[Event "Early-Titled-Tuesday-Blitz-October-03-2023"]
[Site "Chess.com"]
[Date "2023.10.03"]
[Round "1"]
[White "Fore_Man"]
[Black "GeorgiosSouleidis"]
[Result "0-1"]
[WhiteElo "2264"]
[BlackElo "2603"]
[TimeControl "180+1"]
[EndTime "8:08:55 PDT"]
[Termination "GeorgiosSouleidis won by resignation"]

1. Nf3 {[%clk 0:02:56.8]} 1... Nf6 {[%clk 0:02:57.2]} 2. c4 {[%clk 0:02:57.7]}
2... g6 {[%clk 0:02:57.2]} 3. d4 {[%clk 0:02:58.6]} 3... Bg7 {[%clk 0:02:57.2]}
4. e3 {[%clk 0:02:59.5]} 4... O-O {[%clk 0:02:57.1]} 5. Nc3 {[%clk 0:03:00.4]}
5... d6 {[%clk 0:02:53.6]} 6. Bd3 {[%clk 0:03:00.6]} 6... Nbd7 {[%clk
0:02:53.7]} 7. O-O {[%clk 0:03:00.5]} 7... e5 {[%clk 0:02:54]} 8. d5 {[%clk
0:02:59.6]} 8... Nc5 {[%clk 0:02:52.3]} 9. Bc2 {[%clk 0:02:59.7]} 9... a5 {[%clk
0:02:52.4]} 10. e4 {[%clk 0:03:00.2]} 10... Ne8 {[%clk 0:02:44.2]} 11. Bg5
{[%clk 0:02:55.7]} 11... f6 {[%clk 0:02:43.7]} 12. Bh4 {[%clk 0:02:55.7]} 12...
g5 {[%clk 0:02:40.9]} 13. Bg3 {[%clk 0:02:55.8]} 13... h6 {[%clk 0:02:24.3]} 14.
h4 {[%clk 0:02:54.9]} 14... Bg4 {[%clk 0:02:18.9]} 15. hxg5 {[%clk 0:02:53.1]}
15... fxg5 {[%clk 0:02:18.3]} 16. a3 {[%clk 0:02:51.8]} 16... h5 {[%clk
0:01:47.5]} 17. b4 {[%clk 0:02:42.2]} 17... Na6 {[%clk 0:01:43.3]} 18. Rb1
{[%clk 0:02:38.7]} 18... h4 {[%clk 0:01:42.9]} 19. Bh2 {[%clk 0:02:36]} 19... h3
{[%clk 0:01:42.9]} 20. Re1 {[%clk 0:02:27.9]} 20... hxg2 {[%clk 0:01:41.2]} 21.
Re3 {[%clk 0:02:28.5]} 21... Qf6 {[%clk 0:01:15]} 22. Kxg2 {[%clk 0:02:28.4]}
22... Bh6 {[%clk 0:01:13.3]} 23. Bg3 {[%clk 0:02:24.4]} 23... Ng7 {[%clk
0:01:10.9]} 24. Bd3 {[%clk 0:02:23.3]} 24... Nh5 {[%clk 0:01:04.1]} 25. Be2
{[%clk 0:02:19.7]} 25... Nf4+ {[%clk 0:01:01.4]} 26. Bxf4 {[%clk 0:02:16.8]}
26... gxf4 {[%clk 0:00:55.9]} 27. Rd3 {[%clk 0:02:15.4]} 27... axb4 {[%clk
0:00:54]} 28. axb4 {[%clk 0:02:14.8]} 28... Kh7 {[%clk 0:00:43]} 29. Kf1 {[%clk
0:02:14.8]} 29... Rg8 {[%clk 0:00:37.8]} 30. Ke1 {[%clk 0:02:14.9]} 30... Nb8
{[%clk 0:00:36]} 31. Kd2 {[%clk 0:02:10.7]} 31... Nd7 {[%clk 0:00:35.8]} 32. Kc2
{[%clk 0:02:00.9]} 32... Nb6 {[%clk 0:00:35.9]} 33. Kb3 {[%clk 0:01:59.8]} 33...
Bh5 {[%clk 0:00:35.1]} 34. Rd2 {[%clk 0:01:58.1]} 34... Ra7 {[%clk 0:00:22.2]}
35. Nb5 {[%clk 0:01:53]} 35... Raa8 {[%clk 0:00:17.9]} 36. Ra1 {[%clk
0:01:51.7]} 36... Rxa1 {[%clk 0:00:16.4]} 37. Qxa1 {[%clk 0:01:52.6]} 37... Rg7
{[%clk 0:00:16.2]} 38. Qa5 {[%clk 0:01:47.1]} 38... Qd8 {[%clk 0:00:12.1]} 39.
c5 {[%clk 0:01:43.7]} 39... Nc8 {[%clk 0:00:10.1]} 40. Qa8 {[%clk 0:01:39.8]}
40... Bxf3 {[%clk 0:00:09.6]} 41. Bxf3 {[%clk 0:01:39.6]} 41... Qd7 {[%clk
0:00:09.9]} 42. Na7 {[%clk 0:01:28.1]} 42... Nxa7 {[%clk 0:00:06.6]} 43. Qxa7
{[%clk 0:01:29]} 43... dxc5 {[%clk 0:00:06.3]} 44. Qxc5 {[%clk 0:01:27.3]} 44...
b6 {[%clk 0:00:06.2]} 45. Qc6 {[%clk 0:01:25.8]} 45... Bg5 {[%clk 0:00:04.7]}
46. b5 {[%clk 0:01:23.7]} 46... Qxc6 {[%clk 0:00:04.2]} 47. dxc6 {[%clk
0:01:24.6]} 47... Be7 {[%clk 0:00:04.5]} 48. Rd7 {[%clk 0:01:23.6]} 48... Bc5
{[%clk 0:00:04.5]} 49. Rd2 {[%clk 0:01:20.1]} 49... Bd4 {[%clk 0:00:04.9]} 50.
Kc4 {[%clk 0:01:17.7]} 50... Rg1 {[%clk 0:00:05.1]} 51. Rxd4 {[%clk 0:01:14.4]}
51... exd4 {[%clk 0:00:06]} 52. Kxd4 {[%clk 0:01:15.3]} 52... Rf1 {[%clk
0:00:06.3]} 53. e5 {[%clk 0:01:14.3]} 53... Kg7 {[%clk 0:00:06.7]} 54. Ke4
{[%clk 0:01:12.8]} 54... Rxf2 {[%clk 0:00:06.4]} 55. Kxf4 {[%clk 0:01:09.8]}
55... Rb2 {[%clk 0:00:06.4]} 56. Kf5 {[%clk 0:01:08.2]} 56... Kf7 {[%clk
0:00:04.7]} 57. Bd5+ {[%clk 0:01:00.5]} 57... Ke7 {[%clk 0:00:05.2]} 58. Bc4
{[%clk 0:01:00.7]} 58... Rb4 {[%clk 0:00:05.5]} 59. Bd3 {[%clk 0:01:00.9]} 59...
Rd4 {[%clk 0:00:05.5]} 60. Be2 {[%clk 0:00:59.8]} 60... Rd2 {[%clk 0:00:05.9]}
61. Bc4 {[%clk 0:00:59.9]} 61... Rf2+ {[%clk 0:00:06.3]} 62. Ke4 {[%clk
0:01:00]} 62... Rc2 {[%clk 0:00:07.1]} 63. Kd3 {[%clk 0:01:00.1]} 63... Rc1
{[%clk 0:00:06.9]} 64. Kd4 {[%clk 0:00:59]} 64... Re1 {[%clk 0:00:06.8]} 65. Bd5
{[%clk 0:00:58.7]} 65... Rd1+ {[%clk 0:00:06.2]} 66. Ke4 {[%clk 0:00:59.2]}
66... Rb1 {[%clk 0:00:05.6]} 67. Bc4 {[%clk 0:00:59.6]} 67... Re1+ {[%clk
0:00:05.9]} 68. Kd4 {[%clk 0:01:00.1]} 68... Rh1 {[%clk 0:00:06]} 69. Kd5 {[%clk
0:01:00]} 69... Rh4 {[%clk 0:00:06.4]} 70. Bd3 {[%clk 0:01:00]} 70... Rb4 {[%clk
0:00:06.2]} 71. Be2 {[%clk 0:00:59.2]} 71... Rh4 {[%clk 0:00:05.6]} 72. Bd3
{[%clk 0:00:59.5]} 72... Rf4 {[%clk 0:00:05.8]} 73. Bc4 {[%clk 0:00:59.8]} 73...
Rg4 {[%clk 0:00:05.4]} 74. Bd3 {[%clk 0:01:00.3]} 74... Rg8 {[%clk 0:00:05.8]}
75. Bc4 {[%clk 0:00:59.9]} 75... Rd8+ {[%clk 0:00:06]} 76. Ke4 {[%clk
0:01:00.6]} 76... Rd1 {[%clk 0:00:05.8]} 77. Bd3 {[%clk 0:00:59.8]} 77... Rc1
{[%clk 0:00:05.6]} 78. Kd4 {[%clk 0:00:59.4]} 78... Rc5 {[%clk 0:00:05.3]} 79.
Bc4 {[%clk 0:00:58.9]} 79... Ke8 {[%clk 0:00:04.8]} 80. Bd3 {[%clk 0:00:52.5]}
80... Kf8 {[%clk 0:00:05.3]} 81. Bc4 {[%clk 0:00:52.7]} 81... Ke7 {[%clk
0:00:05.9]} 82. Bd3 {[%clk 0:00:50.8]} 82... Ke6 {[%clk 0:00:06.4]} 83. Bh7
{[%clk 0:00:42.2]} 83... Rd5+ {[%clk 0:00:05.8]} 84. Kc4 {[%clk 0:00:41.8]}
84... Rxe5 {[%clk 0:00:06.1]} 85. Bg8+ {[%clk 0:00:41.9]} 85... Kd6 {[%clk
0:00:06.7]} 86. Bh7 {[%clk 0:00:40.9]} 86... Rh5 {[%clk 0:00:06.7]} 87. Bd3
{[%clk 0:00:40.4]} 87... Rh4+ {[%clk 0:00:07.6]} 88. Kc3 {[%clk 0:00:39.7]}
88... Kc5 {[%clk 0:00:08.5]} 89. Bf1 {[%clk 0:00:39.1]} 89... Rf4 {[%clk
0:00:08.3]} 90. Be2 {[%clk 0:00:38.9]} 90... Rf2 {[%clk 0:00:08.3]} 91. Bd3
{[%clk 0:00:37.6]} 91... Rh2 {[%clk 0:00:09.2]} 92. Kb3 {[%clk 0:00:36.1]} 92...
Rh3 {[%clk 0:00:09.3]} 93. Kc3 {[%clk 0:00:37]} 93... Rxd3+ {[%clk 0:00:09.2]}
94. Kxd3 {[%clk 0:00:37.9]} 94... Kxb5 {[%clk 0:00:09.4]} 0-1

[Event "Early-Titled-Tuesday-Blitz-October-03-2023"]
[Site "Chess.com"]
[Date "2023.10.03"]
[Round "1"]
[White "QuintilianoR"]
[Black "Quattroporte300"]
[Result "0-1"]
[WhiteElo "2668"]
[BlackElo "2394"]
[TimeControl "180+1"]
[EndTime "8:09:53 PDT"]
[Termination "Quattroporte300 won by resignation"]

1. e4 {[%clk 0:02:58.1]} 1... c5 {[%clk 0:02:59.6]} 2. Nf3 {[%clk 0:02:57.1]}
2... Nc6 {[%clk 0:03:00.1]} 3. d4 {[%clk 0:02:51.3]} 3... cxd4 {[%clk 0:03:00]}
4. Nxd4 {[%clk 0:02:52.2]} 4... Nf6 {[%clk 0:02:58.9]} 5. Nc3 {[%clk 0:02:52.1]}
5... d6 {[%clk 0:02:59.2]} 6. g3 {[%clk 0:02:45.5]} 6... g6 {[%clk 0:02:53.8]}
7. Bg2 {[%clk 0:02:44.8]} 7... Bg7 {[%clk 0:02:54.4]} 8. O-O {[%clk 0:02:25.5]}
8... O-O {[%clk 0:02:53.5]} 9. Nde2 {[%clk 0:02:22.8]} 9... a6 {[%clk
0:02:49.8]} 10. Nd5 {[%clk 0:02:08.7]} 10... Rb8 {[%clk 0:02:43.5]} 11. a4
{[%clk 0:02:04.9]} 11... b5 {[%clk 0:02:41.7]} 12. axb5 {[%clk 0:02:03.9]} 12...
axb5 {[%clk 0:02:41.7]} 13. h3 {[%clk 0:01:49.1]} 13... Bb7 {[%clk 0:02:38.8]}
14. Bg5 {[%clk 0:01:45.7]} 14... e6 {[%clk 0:02:24.4]} 15. Nxf6+ {[%clk
0:01:21.9]} 15... Bxf6 {[%clk 0:02:25.3]} 16. Bh6 {[%clk 0:01:22.6]} 16... Re8
{[%clk 0:02:17.8]} 17. c3 {[%clk 0:01:18.1]} 17... Bg7 {[%clk 0:02:14.6]} 18.
Bxg7 {[%clk 0:01:16.9]} 18... Kxg7 {[%clk 0:02:15.5]} 19. Nd4 {[%clk 0:01:12.1]}
19... Nxd4 {[%clk 0:02:05.3]} 20. Qxd4+ {[%clk 0:01:13]} 20... e5 {[%clk
0:02:04.5]} 21. Qe3 {[%clk 0:01:04.7]} 21... Qc7 {[%clk 0:01:55.3]} 22. Rfd1
{[%clk 0:01:03.6]} 22... Ra8 {[%clk 0:01:51.9]} 23. h4 {[%clk 0:01:02.1]} 23...
h5 {[%clk 0:01:50.9]} 24. Rac1 {[%clk 0:00:49.5]} 24... Rad8 {[%clk 0:01:42.8]}
25. Rc2 {[%clk 0:00:44.8]} 25... Qc4 {[%clk 0:01:41.5]} 26. Rcd2 {[%clk
0:00:42.9]} 26... Qc7 {[%clk 0:01:36.9]} 27. Bf1 {[%clk 0:00:42.2]} 27... Bc6
{[%clk 0:01:34.8]} 28. Rd3 {[%clk 0:00:38.2]} 28... Rd7 {[%clk 0:01:34.3]} 29.
Bh3 {[%clk 0:00:36.6]} 29... Rdd8 {[%clk 0:01:32.9]} 30. Bg2 {[%clk 0:00:34.8]}
30... Rd7 {[%clk 0:01:32.3]} 31. Ra1 {[%clk 0:00:34.6]} 31... Ra8 {[%clk
0:01:25.7]} 32. Rad1 {[%clk 0:00:30.7]} 32... Rad8 {[%clk 0:01:13.6]} 33. Kh2
{[%clk 0:00:30.3]} 33... Qb7 {[%clk 0:01:05.7]} 34. R3d2 {[%clk 0:00:29.6]}
34... f5 {[%clk 0:01:01.6]} 35. f3 {[%clk 0:00:19.9]} 35... fxe4 {[%clk
0:00:44.6]} 36. fxe4 {[%clk 0:00:20.8]} 36... Qc7 {[%clk 0:00:37.7]} 37. Qg5
{[%clk 0:00:20.6]} 37... Rf7 {[%clk 0:00:34.3]} 38. Re2 {[%clk 0:00:15.2]} 38...
Rdf8 {[%clk 0:00:32.4]} 39. Qe3 {[%clk 0:00:14.3]} 39... Rf6 {[%clk 0:00:27.9]}
40. Red2 {[%clk 0:00:14.6]} 40... R8f7 {[%clk 0:00:24.8]} 41. Bh3 {[%clk
0:00:14.5]} 41... Qb7 {[%clk 0:00:23.4]} 42. Bg2 {[%clk 0:00:14.8]} 42... Rd7
{[%clk 0:00:21.6]} 43. Qe1 {[%clk 0:00:15.2]} 43... Qc7 {[%clk 0:00:18.8]} 44.
Rf2 {[%clk 0:00:15.3]} 44... Rdf7 {[%clk 0:00:17.8]} 45. Rxf6 {[%clk 0:00:15]}
45... Rxf6 {[%clk 0:00:18.7]} 46. Rd2 {[%clk 0:00:15.6]} 46... Qb7 {[%clk
0:00:18.9]} 47. Re2 {[%clk 0:00:14.8]} 47... Rf7 {[%clk 0:00:18.7]} 48. Qd2
{[%clk 0:00:15.3]} 48... Rf6 {[%clk 0:00:19.3]} 49. Qe3 {[%clk 0:00:15.5]} 49...
Qc7 {[%clk 0:00:19.6]} 50. Rd2 {[%clk 0:00:16.1]} 50... Qb7 {[%clk 0:00:18.7]}
51. Rd3 {[%clk 0:00:16.7]} 51... Re6 {[%clk 0:00:17.6]} 52. Bh3 {[%clk
0:00:16.2]} 52... Rf6 {[%clk 0:00:17.9]} 53. Bg2 {[%clk 0:00:16.8]} 53... Qc7
{[%clk 0:00:18.5]} 54. Qd2 {[%clk 0:00:17]} 54... Re6 {[%clk 0:00:18]} 55. Re3
{[%clk 0:00:17.1]} 55... Rf6 {[%clk 0:00:17.8]} 56. Qe2 {[%clk 0:00:17.5]} 56...
Qb7 {[%clk 0:00:17.8]} 57. g4 {[%clk 0:00:18.1]} 57... hxg4 {[%clk 0:00:17.5]}
58. Qxg4 {[%clk 0:00:19]} 58... Qd7 {[%clk 0:00:17.6]} 59. Qg5 {[%clk
0:00:18.9]} 59... Rf4 {[%clk 0:00:15.9]} 60. Rg3 {[%clk 0:00:18.3]} 60... Qf7
{[%clk 0:00:14.1]} 61. h5 {[%clk 0:00:18.9]} 61... Rf6 {[%clk 0:00:13.6]} 62.
Qh4 {[%clk 0:00:14.4]} 62... Be8 {[%clk 0:00:09.6]} 63. Rh3 {[%clk 0:00:14.5]}
63... gxh5 {[%clk 0:00:07.8]} 64. Rg3+ {[%clk 0:00:15.1]} 64... Rg6 {[%clk
0:00:07.3]} 65. Qxh5 {[%clk 0:00:15.6]} 65... Rxg3 {[%clk 0:00:07.3]} 66. Qxf7+
{[%clk 0:00:15.9]} 66... Kxf7 {[%clk 0:00:07.5]} 67. Kxg3 {[%clk 0:00:16.8]}
67... Ke6 {[%clk 0:00:07.6]} 68. Kf3 {[%clk 0:00:17.3]} 68... Bg6 {[%clk
0:00:06.9]} 69. Ke3 {[%clk 0:00:17.8]} 69... Kd7 {[%clk 0:00:06.9]} 70. Bh3+
{[%clk 0:00:17.3]} 70... Kc6 {[%clk 0:00:07.2]} 71. b4 {[%clk 0:00:17.6]} 71...
Kb6 {[%clk 0:00:07.1]} 72. Be6 {[%clk 0:00:17.8]} 72... Kc6 {[%clk 0:00:07]} 73.
Bd5+ {[%clk 0:00:18.3]} 73... Kc7 {[%clk 0:00:07.2]} 74. Kf3 {[%clk 0:00:18.9]}
74... Bh7 {[%clk 0:00:07.5]} 75. Kg4 {[%clk 0:00:19.4]} 75... Bg6 {[%clk
0:00:07.9]} 76. Kg5 {[%clk 0:00:19.9]} 76... Be8 {[%clk 0:00:07.6]} 77. Kf6
{[%clk 0:00:20.6]} 77... Bd7 {[%clk 0:00:08.2]} 78. Ke7 {[%clk 0:00:20.4]} 78...
Bg4 {[%clk 0:00:08.8]} 79. Be6 {[%clk 0:00:20.3]} 79... Bf3 {[%clk 0:00:09]} 80.
Bd5 {[%clk 0:00:21]} 80... Bg2 {[%clk 0:00:09.6]} 81. Ke6 {[%clk 0:00:21.2]}
81... Bf3 {[%clk 0:00:09.7]} 82. Kf6 {[%clk 0:00:21.8]} 82... Bg2 {[%clk
0:00:09.8]} 83. Kg5 {[%clk 0:00:22.4]} 83... Bf3 {[%clk 0:00:10.1]} 84. Kh4
{[%clk 0:00:22.7]} 84... Bd1 {[%clk 0:00:09.5]} 85. Kg3 {[%clk 0:00:22.8]} 85...
Bh5 {[%clk 0:00:09.5]} 86. Be6 {[%clk 0:00:23.2]} 86... Be2 {[%clk 0:00:09.2]}
87. Kf2 {[%clk 0:00:22.6]} 87... Bh5 {[%clk 0:00:08.6]} 88. Ke3 {[%clk
0:00:23.2]} 88... Bg6 {[%clk 0:00:08.2]} 89. Bd5 {[%clk 0:00:23.1]} 89... Bh5
{[%clk 0:00:08.1]} 90. Kd3 {[%clk 0:00:23.8]} 90... Bf3 {[%clk 0:00:07.5]} 91.
c4 {[%clk 0:00:24.2]} 91... bxc4+ {[%clk 0:00:07.8]} 92. Kxc4 {[%clk 0:00:25.1]}
92... Be2+ {[%clk 0:00:08.1]} 93. Kb3 {[%clk 0:00:25]} 93... Kb6 {[%clk
0:00:08.5]} 94. Ka4 {[%clk 0:00:25.5]} 94... Bb5+ {[%clk 0:00:08.3]} 95. Kb3
{[%clk 0:00:25.8]} 95... Bd3 {[%clk 0:00:08.8]} 96. Bc4 {[%clk 0:00:26.5]} 96...
Bxe4 {[%clk 0:00:08.2]} 97. Kc3 {[%clk 0:00:27.1]} 97... d5 {[%clk 0:00:08.7]}
98. Bb3 {[%clk 0:00:26.5]} 98... d4+ {[%clk 0:00:07.9]} 99. Kc4 {[%clk 0:00:27]}
99... Bc6 {[%clk 0:00:07.1]} 100. Kd3 {[%clk 0:00:26.2]} 100... Kb5 {[%clk
0:00:05.8]} 101. Be6 {[%clk 0:00:21]} 101... Kxb4 {[%clk 0:00:05.5]} 102. Bf5
{[%clk 0:00:21.9]} 102... Kc5 {[%clk 0:00:05.8]} 103. Bh7 {[%clk 0:00:22.5]}
103... Bb5+ {[%clk 0:00:05.6]} 104. Ke4 {[%clk 0:00:22.2]} 104... Kd6 {[%clk
0:00:06.1]} 105. Bg8 {[%clk 0:00:21.3]} 105... Bc6+ {[%clk 0:00:06.2]} 106. Kd3
{[%clk 0:00:21.1]} 106... Bg2 {[%clk 0:00:06.5]} 107. Bc4 {[%clk 0:00:21]}
107... Kc5 {[%clk 0:00:06.7]} 108. Bg8 {[%clk 0:00:19.7]} 108... e4+ {[%clk
0:00:07.3]} 0-1

[Event "Early-Titled-Tuesday-Blitz-October-03-2023"]
[Site "Chess.com"]
[Date "2023.10.03"]
[Round "2"]
[White "Diaschess88"]
[Black "ViktoriyaTarasova"]
[Result "1-0"]
[WhiteElo "2708"]
[BlackElo "2383"]
[TimeControl "180+1"]
[EndTime "8:12:14 PDT"]
[Termination "Diaschess88 won by resignation"]

1. e4 {[%clk 0:03:00.9]} 1... e5 {[%clk 0:02:57.9]} 2. Nf3 {[%clk 0:02:59.1]}
2... Nc6 {[%clk 0:02:58.1]} 3. Bb5 {[%clk 0:02:58.9]} 3... Nf6 {[%clk
0:02:57.9]} 4. O-O {[%clk 0:02:57.5]} 4... Nxe4 {[%clk 0:02:57.8]} 5. Re1 {[%clk
0:02:57.8]} 5... Nd6 {[%clk 0:02:57.8]} 6. Nxe5 {[%clk 0:02:58.4]} 6... Be7
{[%clk 0:02:56.1]} 7. Bf1 {[%clk 0:02:58.6]} 7... Nxe5 {[%clk 0:02:55.4]} 8.
Rxe5 {[%clk 0:02:59.5]} 8... O-O {[%clk 0:02:56]} 9. d4 {[%clk 0:02:59.5]} 9...
Bf6 {[%clk 0:02:55.6]} 10. Re1 {[%clk 0:03:00.1]} 10... Nf5 {[%clk 0:02:55.8]}
11. c3 {[%clk 0:03:00.6]} 11... d5 {[%clk 0:02:55.9]} 12. Bf4 {[%clk 0:03:00]}
12... c6 {[%clk 0:02:54.8]} 13. Nd2 {[%clk 0:03:00]} 13... Re8 {[%clk 0:02:54]}
14. Qc2 {[%clk 0:02:56.5]} 14... Nh4 {[%clk 0:02:44.2]} 15. Bd3 {[%clk
0:02:47.1]} 15... Ng6 {[%clk 0:02:41.7]} 16. Bc7 {[%clk 0:02:35.5]} 16... Rxe1+
{[%clk 0:02:26.3]} 17. Rxe1 {[%clk 0:02:36.4]} 17... Qxc7 {[%clk 0:02:23.9]} 18.
Re8+ {[%clk 0:02:34.9]} 18... Nf8 {[%clk 0:02:24]} 19. Bxh7+ {[%clk 0:02:35.4]}
1-0

[Event "Early-Titled-Tuesday-Blitz-October-03-2023"]
[Site "Chess.com"]
[Date "2023.10.03"]
[Round "2"]
[White "vladislavkovalev"]
[Black "FERNANDEZL1983"]
[Result "1-0"]
[WhiteElo "2867"]
[BlackElo "2597"]
[TimeControl "180+1"]
[EndTime "8:12:46 PDT"]
[Termination "vladislavkovalev won by resignation"]

1. e4 {[%clk 0:03:00.9]} 1... c5 {[%clk 0:02:58]} 2. Nf3 {[%clk 0:03:01.4]} 2...
a6 {[%clk 0:02:58.2]} 3. c4 {[%clk 0:03:00.5]} 3... d6 {[%clk 0:02:56.4]} 4. d4
{[%clk 0:03:00.7]} 4... cxd4 {[%clk 0:02:56.3]} 5. Nxd4 {[%clk 0:03:01.6]} 5...
Nf6 {[%clk 0:02:56.3]} 6. Nc3 {[%clk 0:03:02.3]} 6... e6 {[%clk 0:02:55.8]} 7.
Be3 {[%clk 0:03:01.6]} 7... Be7 {[%clk 0:02:56.1]} 8. Qd2 {[%clk 0:03:01.4]}
8... Ng4 {[%clk 0:02:53.6]} 9. Be2 {[%clk 0:02:58]} 9... Nxe3 {[%clk 0:02:52.9]}
10. Qxe3 {[%clk 0:02:58.9]} 10... O-O {[%clk 0:02:52.6]} 11. O-O {[%clk
0:02:57.1]} 11... b6 {[%clk 0:02:50.9]} 12. Rad1 {[%clk 0:02:57]} 12... Bb7
{[%clk 0:02:50.3]} 13. f4 {[%clk 0:02:57.8]} 13... Nd7 {[%clk 0:02:49.1]} 14.
Kh1 {[%clk 0:02:53.2]} 14... Rc8 {[%clk 0:02:49.3]} 15. b3 {[%clk 0:02:53.1]}
15... Qc7 {[%clk 0:02:49.2]} 16. f5 {[%clk 0:02:43.2]} 16... e5 {[%clk
0:02:47.8]} 17. Nc2 {[%clk 0:02:43.6]} 17... b5 {[%clk 0:02:43.4]} 18. Nb4
{[%clk 0:02:42.6]} 18... Nf6 {[%clk 0:02:43.3]} 19. Nbd5 {[%clk 0:02:36.1]}
19... Bxd5 {[%clk 0:02:41.4]} 20. Nxd5 {[%clk 0:02:37]} 20... Nxd5 {[%clk
0:02:41]} 21. Rxd5 {[%clk 0:02:37.9]} 21... bxc4 {[%clk 0:02:33.8]} 22. Bxc4
{[%clk 0:02:38.8]} 22... a5 {[%clk 0:02:21.9]} 23. f6 {[%clk 0:02:33.9]} 23...
Bxf6 {[%clk 0:02:20.1]} 24. Rxf6 {[%clk 0:02:34.6]} 24... gxf6 {[%clk
0:02:20.2]} 25. Qh6 {[%clk 0:02:35.3]} 25... Qe7 {[%clk 0:02:18.1]} 26. Rd3
{[%clk 0:02:35.6]} 1-0

[Event "Early-Titled-Tuesday-Blitz-October-03-2023"]
[Site "Chess.com"]
[Date "2023.10.03"]
[Round "2"]
[White "KVAIDAN"]
[Black "wannabe2700"]
[Result "0-1"]
[WhiteElo "2262"]
[BlackElo "2679"]
[TimeControl "180+1"]
[EndTime "8:13:20 PDT"]
[Termination "wannabe2700 won by resignation"]

1. f4 {[%clk 0:02:56.7]} 1... d5 {[%clk 0:02:54.3]} 2. Nf3 {[%clk 0:02:57]} 2...
g6 {[%clk 0:02:54.2]} 3. e3 {[%clk 0:02:57.5]} 3... Bg7 {[%clk 0:02:54.5]} 4.
Be2 {[%clk 0:02:58]} 4... Nf6 {[%clk 0:02:54.3]} 5. O-O {[%clk 0:02:58.6]} 5...
O-O {[%clk 0:02:54.6]} 6. d3 {[%clk 0:02:58.6]} 6... c5 {[%clk 0:02:52.6]} 7.
Kh1 {[%clk 0:02:58.9]} 7... Nc6 {[%clk 0:02:53]} 8. a4 {[%clk 0:02:59.3]} 8...
Qc7 {[%clk 0:02:52.6]} 9. Nc3 {[%clk 0:02:59.5]} 9... a6 {[%clk 0:02:52.2]} 10.
e4 {[%clk 0:02:59.1]} 10... dxe4 {[%clk 0:02:49.4]} 11. dxe4 {[%clk 0:02:59.3]}
11... Rd8 {[%clk 0:02:49]} 12. Qe1 {[%clk 0:02:59.8]} 12... Nd4 {[%clk
0:02:48.5]} 13. Bd1 {[%clk 0:02:59.5]} 13... b6 {[%clk 0:02:38.5]} 14. Qh4
{[%clk 0:02:58.8]} 14... Bb7 {[%clk 0:02:35.3]} 15. e5 {[%clk 0:02:59.2]} 15...
Nxf3 {[%clk 0:02:30.9]} 16. Bxf3 {[%clk 0:02:53.8]} 16... Bxf3 {[%clk
0:02:30.9]} 17. exf6 {[%clk 0:02:51.6]} 17... Bxf6 {[%clk 0:02:30.6]} 18. Qe1
{[%clk 0:02:46.9]} 18... Bb7 {[%clk 0:02:25.6]} 19. Ne4 {[%clk 0:02:46.9]} 19...
Bg7 {[%clk 0:02:23.6]} 20. c3 {[%clk 0:02:47.2]} 20... Qc6 {[%clk 0:02:23.2]}
21. a5 {[%clk 0:02:39.4]} 21... b5 {[%clk 0:02:21.7]} 22. Bd2 {[%clk 0:02:33.8]}
22... Qxe4 {[%clk 0:02:21.1]} 23. Qxe4 {[%clk 0:02:34.3]} 23... Bxe4 {[%clk
0:02:21.9]} 24. Be3 {[%clk 0:02:35.1]} 24... c4 {[%clk 0:02:21.1]} 25. Rf2
{[%clk 0:02:32.8]} 25... Rd3 {[%clk 0:02:20.1]} 26. Re1 {[%clk 0:02:30.8]} 26...
Rad8 {[%clk 0:02:11.3]} 27. Kg1 {[%clk 0:02:31.1]} 27... Rd1 {[%clk 0:02:08]}
28. Re2 {[%clk 0:02:31.4]} 28... Bc2 {[%clk 0:01:57.3]} 29. Kf2 {[%clk
0:02:30.2]} 29... Rxe1 {[%clk 0:01:55.5]} 30. Rxe1 {[%clk 0:02:27.9]} 30... Rd1
{[%clk 0:01:55.7]} 31. Re2 {[%clk 0:02:28]} 31... Bd3 {[%clk 0:01:55.2]} 32. Rd2
{[%clk 0:02:25.2]} 32... Rxd2+ {[%clk 0:01:53.4]} 33. Bxd2 {[%clk 0:02:25.1]}
33... e5 {[%clk 0:01:53.5]} 34. Ke3 {[%clk 0:02:26]} 34... exf4+ {[%clk
0:01:53]} 35. Kxf4 {[%clk 0:02:26.5]} 35... Bh6+ {[%clk 0:01:53.2]} 0-1

[Event "Early-Titled-Tuesday-Blitz-October-03-2023"]
[Site "Chess.com"]
[Date "2023.10.03"]
[Round "2"]
[White "chesslh19"]
[Black "Predator0608"]
[Result "1/2-1/2"]
[WhiteElo "2322"]
[BlackElo "2504"]
[TimeControl "180+1"]
[EndTime "8:13:29 PDT"]
[Termination "Game drawn by agreement"]

1. e4 {[%clk 0:03:00.9]} 1... c5 {[%clk 0:02:59.5]} 2. Nf3 {[%clk 0:02:59.9]}
2... d6 {[%clk 0:02:59.7]} 3. d4 {[%clk 0:03:00.5]} 3... cxd4 {[%clk 0:03:00.6]}
4. Nxd4 {[%clk 0:03:00.9]} 4... Nf6 {[%clk 0:03:01.3]} 5. Nc3 {[%clk 0:03:01.2]}
5... a6 {[%clk 0:03:01.2]} 6. Be2 {[%clk 0:03:01.6]} 6... e5 {[%clk 0:03:01.7]}
7. Nb3 {[%clk 0:03:02.1]} 7... Be7 {[%clk 0:03:01.8]} 8. O-O {[%clk 0:03:02.1]}
8... O-O {[%clk 0:03:02.4]} 9. Be3 {[%clk 0:03:02.9]} 9... Be6 {[%clk
0:03:02.5]} 10. Qd2 {[%clk 0:03:03.5]} 10... Nbd7 {[%clk 0:03:02.8]} 11. a4
{[%clk 0:03:03.5]} 11... Rc8 {[%clk 0:02:56.7]} 12. a5 {[%clk 0:03:03.2]} 12...
Nc5 {[%clk 0:02:55.4]} 13. Nxc5 {[%clk 0:03:02.9]} 13... dxc5 {[%clk 0:02:56.3]}
14. Rfd1 {[%clk 0:02:57.7]} 14... Qe8 {[%clk 0:02:50]} 15. Qe1 {[%clk
0:02:52.7]} 15... Qc6 {[%clk 0:02:48.3]} 16. f3 {[%clk 0:02:45.5]} 16... Rfd8
{[%clk 0:02:46.5]} 17. Na4 {[%clk 0:02:34.6]} 17... Rxd1 {[%clk 0:02:42.7]} 18.
Qxd1 {[%clk 0:02:29]} 18... Rd8 {[%clk 0:02:42.2]} 19. Qe1 {[%clk 0:02:28]}
19... c4 {[%clk 0:02:40.2]} 20. c3 {[%clk 0:02:08.4]} 20... Kf8 {[%clk
0:02:31.3]} 21. Nb6 {[%clk 0:02:01.6]} 21... Bc5 {[%clk 0:02:30.5]} 22. Qf2
{[%clk 0:01:57.8]} 22... Bxe3 {[%clk 0:02:25.6]} 23. Qxe3 {[%clk 0:01:58.7]}
23... Nd7 {[%clk 0:02:26.2]} 24. Rd1 {[%clk 0:01:49.4]} 24... Ke8 {[%clk
0:02:20]} 1/2-1/2

[Event "Early-Titled-Tuesday-Blitz-October-03-2023"]
[Site "Chess.com"]
[Date "2023.10.03"]
[Round "2"]
[White "BlueWizzard"]
[Black "DanielTitichoca"]
[Result "1-0"]
[WhiteElo "2954"]
[BlackElo "2617"]
[TimeControl "180+1"]
[EndTime "8:13:35 PDT"]
[Termination "BlueWizzard won by resignation"]

1. d4 {[%clk 0:03:00.9]} 1... Nf6 {[%clk 0:02:58.3]} 2. Nc3 {[%clk 0:03:01.2]}
2... d5 {[%clk 0:02:56.7]} 3. Bg5 {[%clk 0:03:00]} 3... Nbd7 {[%clk 0:02:51.7]}
4. Nf3 {[%clk 0:02:59.3]} 4... g6 {[%clk 0:02:46.2]} 5. Qd3 {[%clk 0:02:56.5]}
5... Bg7 {[%clk 0:02:42.1]} 6. e4 {[%clk 0:02:56.6]} 6... dxe4 {[%clk
0:02:41.7]} 7. Nxe4 {[%clk 0:02:57.5]} 7... O-O {[%clk 0:02:38.6]} 8. O-O-O
{[%clk 0:02:56.4]} 8... Re8 {[%clk 0:02:30.2]} 9. h4 {[%clk 0:02:55.6]} 9...
Nxe4 {[%clk 0:02:27]} 10. Qxe4 {[%clk 0:02:56.5]} 10... c5 {[%clk 0:02:26.7]}
11. Bc4 {[%clk 0:02:53.6]} 11... Qa5 {[%clk 0:02:22.3]} 12. h5 {[%clk
0:02:50.2]} 12... Nb6 {[%clk 0:02:14.5]} 13. Bxf7+ {[%clk 0:02:23.9]} 13... Kxf7
{[%clk 0:02:13.4]} 14. hxg6+ {[%clk 0:02:24.5]} 14... hxg6 {[%clk 0:01:48.3]}
15. Ne5+ {[%clk 0:02:24.2]} 15... Bxe5 {[%clk 0:01:26.5]} 16. Qxe5 {[%clk
0:02:17.3]} 1-0